fUST/lending_fUST_20241205
["ID","MTS","AMOUNT","RATE_DAILY","PERIOD"]
[344329038,1733347839235,-500.0,0.00025205,7]
[344329039,1733347839245,-500.0,0.00025205,7]
[344329041,1733347839255,-500.0,0.00025205,7]
[344329044,1733347839264,-1000.0,0.00025221,2]
[344329047,1733347839275,-3483.6618685,0.00025379,2]
[344329048,1733347839285,-900.0,0.00025469,3]
[344329049,1733347839294,-221.549556,0.00025479,7]
[344329050,1733347839304,-221.549556,0.00025479,7]
[344329051,1733347839314,-151.0,0.00025479,7]
[344329052,1733347839323,-151.0,0.00025479,7]
[344329053,1733347839334,-151.0,0.00025479,7]
[344329054,1733347839344,-500.0,0.00025479,7]
[344329055,1733347839355,-744.97,0.00025479,7]
[344329056,1733347839364,-500.0,0.00025479,7]
[344329057,1733347839374,-500.0,0.00025479,7]
[344329058,1733347839384,-500.0,0.00025479,7]
[344329059,1733347839394,-500.0,0.00025479,7]
[344329060,1733347839404,-268.40569996,0.00025479,7]
[344329061,1733347839414,-500.0,0.00025479,7]
[344329062,1733347839423,-500.0,0.00025479,7]
[344329063,1733347839433,-599.08,0.00025479,7]
[344329064,1733347839443,-500.0,0.00025479,7]
[344329065,1733347839452,-500.0,0.00025479,7]
[344329066,1733347839463,-500.0,0.00025479,7]
[344329067,1733347839472,-500.0,0.00025479,7]
[344329068,1733347839483,-500.0,0.00025479,7]
[344329069,1733347839493,-777.31,0.00025479,7]
[344329070,1733347839503,-500.0,0.00025479,7]
[344329071,1733347839513,-500.0,0.00025479,7]
[344329072,1733347839523,-500.0,0.00025479,7]
[344329073,1733347839533,-500.52,0.00025479,7]
[344329074,1733347839543,-500.0,0.00025479,7]
[344329075,1733347839553,-500.0,0.00025479,7]
[344329076,1733347839563,-500.0,0.00025479,7]
[344329077,1733347839573,-500.0,0.00025479,7]
[344329078,1733347839583,-538.85,0.00025479,7]
[344329079,1733347839593,-500.0,0.00025479,7]
[344329080,1733347839603,-500.0,0.00025479,7]
[344329081,1733347839613,-500.0,0.00025479,7]
[344329082,1733347839622,-573.67454008,0.00025479,7]
[344329083,1733347839632,-614.53,0.00025479,7]
[344329084,1733347839642,-622.0,0.00025479,7]
[344329085,1733347839652,-483.37504519,0.00025479,7]
[344329086,1733347839661,-500.0,0.00025479,7]
[344329087,1733347839671,-609.02,0.00025479,7]
[344329088,1733347839680,-1330.07,0.00025479,7]
[344329089,1733347839690,-500.0,0.00025479,7]
[344329090,1733347839699,-500.0,0.00025479,7]
[344329091,1733347839709,-500.0,0.00025479,7]
[344329092,1733347839722,-500.0,0.00025479,7]
[344329093,1733347839731,-500.0,0.00025479,7]
[344329094,1733347839741,-704.14,0.00025479,7]
[344329095,1733347839750,-524.49,0.00025479,7]
[344329096,1733347839759,-500.0,0.00025479,7]
[344329097,1733347839769,-500.0,0.00025479,7]
[344329098,1733347839780,-500.0,0.00025479,7]
[344329099,1733347839790,-500.0,0.00025479,7]
[344329100,1733347839799,-500.0,0.00025479,7]
[344329101,1733347839808,-500.0,0.00025479,7]
[344329102,1733347839818,-500.0,0.00025479,7]
[344329103,1733347839827,-500.0,0.00025479,7]
[344329104,1733347839836,-500.0,0.00025479,7]
[344329105,1733347839846,-876.64,0.00025479,7]
[344329106,1733347839855,-500.0,0.00025479,7]
[344329107,1733347839865,-500.0,0.00025479,7]
[344329108,1733347839875,-1165.47,0.00025479,7]
[344329109,1733347839884,-500.0,0.00025479,7]
[344329110,1733347839893,-585.66,0.00025479,7]
[344329111,1733347839903,-500.0,0.00025479,7]
[344329113,1733347839912,-4717.91,0.00025479,7]
[344329114,1733347839922,-500.0,0.00025479,7]
[344329115,1733347839931,-1716.19,0.00025479,7]
[344329116,1733347839941,-500.0,0.00025479,7]
[344329117,1733347839950,-11081.75,0.00025479,7]
[344329118,1733347839959,-2522.93,0.00025479,7]
[344329119,1733347839972,-579.38,0.00025479,7]
[344329120,1733347839982,-500.0,0.00025479,7]
[344329121,1733347839992,-500.0,0.00025479,7]
[344329122,1733347840001,-500.0,0.00025479,7]
[344329123,1733347840011,-500.0,0.00025479,7]
[344329124,1733347840021,-500.0,0.00025479,7]
[344329125,1733347840031,-1031.46,0.00025479,7]
[344329126,1733347840040,-767.14,0.00025479,7]
[344329127,1733347840055,-500.0,0.00025479,7]
[344329128,1733347840065,-500.0,0.00025479,7]
[344329129,1733347840075,-554.73,0.00025479,7]
[344329130,1733347840085,-569.43357761,0.00025479,7]
[344329131,1733347840095,-610.62,0.00025479,7]
[344329132,1733347840104,-619.76,0.00025479,7]
[344329133,1733347840114,-500.0,0.00025479,7]
[344329134,1733347840125,-1486.12,0.00025479,7]
[344329135,1733347840135,-500.0,0.00025479,7]
[344329136,1733347840146,-1912.5,0.00025479,7]
[344329137,1733347840156,-500.0,0.00025479,7]
[344329138,1733347840165,-608.21,0.00025479,7]
[344329139,1733347840175,-589.95,0.00025479,7]
[344329140,1733347840186,-618.75,0.00025479,7]
[344329141,1733347840195,-500.0,0.00025479,7]
[344329142,1733347840205,-500.0,0.00025479,7]
[344329143,1733347840218,-3054.3,0.00025479,7]
[344329144,1733347840228,-500.0,0.00025479,7]
[344329145,1733347840237,-721.55,0.00025479,7]
[344329146,1733347840246,-780.24,0.00025479,7]
[344329147,1733347840256,-520.87272612,0.00025479,7]
[344329148,1733347840266,-1370.58,0.00025479,7]
[344329149,1733347840276,-500.0,0.00025479,7]
[344329150,1733347840285,-748.48,0.00025479,7]
[344329151,1733347840295,-500.0,0.00025479,7]
[344329152,1733347840305,-500.0,0.00025479,7]
[344329153,1733347840315,-251.11185992,0.00025479,7]
[344329154,1733347840325,-1701.8,0.00025479,7]
[344329155,1733347840335,-500.0,0.00025479,7]
[344329156,1733347840345,-500.0,0.00025479,7]
[344329157,1733347840354,-500.0,0.00025479,7]
[344329158,1733347840364,-715.28,0.00025479,7]
[344329159,1733347840373,-500.0,0.00025479,7]
[344329160,1733347840383,-500.0,0.00025479,7]
[344329161,1733347840393,-1267.59,0.00025479,7]
[344329162,1733347840403,-500.0,0.00025479,7]
[344329163,1733347840413,-500.0,0.00025479,7]
[344329164,1733347840423,-500.0,0.00025479,7]
[344329165,1733347840433,-312.056,0.00025505,10]
[344329166,1733347840443,-2664.72959304,0.00025514,2]
[344329167,1733347840453,-221.549556,0.00025753,7]
[344329168,1733347840466,-221.549556,0.00025753,7]
[344329169,1733347840476,-151.0,0.00025753,7]
[344329170,1733347840485,-285.243274,0.00025753,7]
[344329171,1733347840495,-151.0,0.00025753,7]
[344329172,1733347840505,-500.0,0.00025753,7]
[344329173,1733347840516,-744.97,0.00025753,7]
[344329174,1733347840526,-500.0,0.00025753,7]
[344329175,1733347840536,-500.0,0.00025753,7]
[344329176,1733347840546,-500.0,0.00025753,7]
[344329177,1733347840556,-500.0,0.00025753,7]
[344329178,1733347840566,-500.0,0.00025753,7]
[344329179,1733347840576,-599.08,0.00025753,7]
[344329180,1733347840587,-500.0,0.00025753,7]
[344329181,1733347840597,-151.17920593,0.00025753,7]
[344329182,1733347840607,-500.0,0.00025753,7]
[344329183,1733347840616,-647.17,0.00025753,7]
[344329184,1733347840626,-500.0,0.00025753,7]
[344329185,1733347840636,-777.31,0.00025753,7]
[344329186,1733347840646,-500.0,0.00025753,7]
[344329187,1733347840655,-583.70577403,0.00025753,7]
[344329188,1733347840665,-500.0,0.00025753,7]
[344329189,1733347840675,-500.52,0.00025753,7]
[344329190,1733347840685,-500.0,0.00025753,7]
[344329191,1733347840695,-500.0,0.00025753,7]
[344329192,1733347840705,-500.0,0.00025753,7]
[344329193,1733347840718,-572.72,0.00025753,7]
[344329194,1733347840728,-538.85,0.00025753,7]
[344329195,1733347840737,-500.0,0.00025753,7]
[344329196,1733347840748,-500.0,0.00025753,7]
[344329197,1733347840758,-500.0,0.00025753,7]
[344329198,1733347840768,-622.0,0.00025753,7]
[344329199,1733347840778,-500.0,0.00025753,7]
[344329200,1733347840789,-609.02,0.00025753,7]
[344329201,1733347840799,-1330.07,0.00025753,7]
[344329202,1733347840808,-500.0,0.00025753,7]
[344329203,1733347840819,-500.0,0.00025753,7]
[344329204,1733347840828,-500.0,0.00025753,7]
[344329205,1733347840839,-479.4626461,0.00025753,7]
[344329206,1733347840849,-530.40664275,0.00025753,7]
[344329207,1733347840859,-704.14,0.00025753,7]
[344329208,1733347840869,-524.49,0.00025753,7]
[344329209,1733347840879,-635.46103236,0.00025753,7]
[344329210,1733347840889,-500.0,0.00025753,7]
[344329211,1733347840899,-500.0,0.00025753,7]
[344329212,1733347840909,-500.0,0.00025753,7]
[344329213,1733347840919,-500.0,0.00025753,7]
[344329214,1733347840928,-500.0,0.00025753,7]
[344329215,1733347840939,-429.66227172,0.00025753,7]
[344329216,1733347840949,-876.64,0.00025753,7]
[344329217,1733347840959,-150.65,0.00025753,7]
[344329218,1733347840972,-500.0,0.00025753,7]
[344329219,1733347840982,-1165.47,0.00025753,7]
[344329220,1733347840992,-500.0,0.00025753,7]
[344329221,1733347841002,-585.66,0.00025753,7]
[344329222,1733347841013,-500.0,0.00025753,7]
[344329223,1733347841023,-4717.91,0.00025753,7]
[344329224,1733347841032,-500.0,0.00025753,7]
[344329225,1733347841043,-1716.19,0.00025753,7]
[344329226,1733347841057,-500.0,0.00025753,7]
[344329227,1733347841067,-11081.75,0.00025753,7]
[344329228,1733347841078,-2522.93,0.00025753,7]
[344329229,1733347841088,-579.38,0.00025753,7]
[344329230,1733347841100,-500.0,0.00025753,7]
[344329231,1733347841110,-500.0,0.00025753,7]
[344329232,1733347841120,-500.0,0.00025753,7]
[344329233,1733347841130,-523.19,0.00025753,7]
[344329234,1733347841140,-1031.46,0.00025753,7]
[344329235,1733347841150,-767.14,0.00025753,7]
[344329236,1733347841160,-500.0,0.00025753,7]
[344329237,1733347841170,-500.0,0.00025753,7]
[344329238,1733347841180,-554.73,0.00025753,7]
[344329239,1733347841189,-610.62,0.00025753,7]
[344329240,1733347841201,-500.0,0.00025753,7]
[344329241,1733347841211,-1486.12,0.00025753,7]
[344329242,1733347841224,-500.0,0.00025753,7]
[344329243,1733347841234,-1912.5,0.00025753,7]
[344329244,1733347841243,-608.21,0.00025753,7]
[344329245,1733347841253,-589.95,0.00025753,7]
[344329246,1733347841263,-500.0,0.00025753,7]
[344329247,1733347841273,-3054.3,0.00025753,7]
[344329248,1733347841282,-174.47,0.00025753,7]
[344329249,1733347841292,-721.55,0.00025753,7]
[344329250,1733347841301,-780.24,0.00025753,7]
[344329251,1733347841311,-1370.58,0.00025753,7]
[344329252,1733347841320,-500.0,0.00025753,7]
[344329253,1733347841330,-748.48,0.00025753,7]
[344329254,1733347841339,-500.0,0.00025753,7]
[344329255,1733347841349,-500.0,0.00025753,7]
[344329256,1733347841359,-1701.8,0.00025753,7]
[344329257,1733347841369,-151.0,0.00025753,7]
[344329258,1733347841378,-500.0,0.00025753,7]
[344329259,1733347841388,-500.0,0.00025753,7]
[344329260,1733347841397,-500.0,0.00025753,7]
[344329261,1733347841407,-715.28,0.00025753,7]
[344329262,1733347841417,-500.0,0.00025753,7]
[344329263,1733347841426,-1267.59,0.00025753,7]
[344329264,1733347841435,-500.0,0.00025753,7]
[344329265,1733347841445,-244.35556004,0.00025753,7]
[344329266,1733347841454,-823.0,0.00025808,2]
[344329267,1733347841465,-238.6,0.0002593,4]
[344329268,1733347841475,-1421.7884331,0.00026,2]
[344329269,1733347841484,-511.63531746,0.00026,2]
[344329270,1733347841494,-274.18043902,0.00026,5]
[344329271,1733347841503,-2577.14638238,0.00026,3]
[344329272,1733347841513,-160.0,0.00026026,2]
[344329273,1733347841523,-221.549556,0.00026027,7]
[344329274,1733347841683,-221.549556,0.00026027,7]
[344329275,1733347841694,-151.0,0.00026027,7]
[344329276,1733347841704,-292.21191438,0.00026027,7]
[344329277,1733347841718,-744.97,0.00026027,7]
[344329278,1733347841728,-500.0,0.00026027,7]
[344329279,1733347841738,-500.0,0.00026027,7]
[344329280,1733347841748,-500.0,0.00026027,7]
[344329281,1733347841759,-500.0,0.00026027,7]
[344329282,1733347841770,-599.08,0.00026027,7]
[344329283,1733347841781,-500.0,0.00026027,7]
[344329284,1733347841792,-500.0,0.00026027,7]
[344329285,1733347841804,-500.0,0.00026027,7]
[344329286,1733347841816,-777.31,0.00026027,7]
[344329288,1733347841828,-500.0,0.00026027,7]
[344329289,1733347841839,-500.52,0.00026027,7]
[344329290,1733347841850,-500.0,0.00026027,7]
[344329291,1733347841860,-500.0,0.00026027,7]
[344329292,1733347841871,-500.0,0.00026027,7]
[344329293,1733347841882,-538.85,0.00026027,7]
[344329294,1733347841893,-363.19495909,0.00026027,7]
[344329295,1733347841903,-500.0,0.00026027,7]
[344329297,1733347841914,-500.0,0.00026027,7]
[344329298,1733347841924,-622.0,0.00026027,7]
[344329299,1733347841933,-500.0,0.00026027,7]
[344329300,1733347841943,-609.02,0.00026027,7]
[344329301,1733347841953,-1330.07,0.00026027,7]
[344329302,1733347841965,-500.0,0.00026027,7]
[344329303,1733347841978,-500.0,0.00026027,7]
[344329304,1733347841988,-500.0,0.00026027,7]
[344329306,1733347841998,-704.14,0.00026027,7]
[344329307,1733347842007,-524.49,0.00026027,7]
[344329308,1733347842017,-500.0,0.00026027,7]
[344329309,1733347842028,-224.46684505,0.00026027,7]
[344329310,1733347842040,-500.0,0.00026027,7]
[344329311,1733347842052,-500.0,0.00026027,7]
[344329312,1733347842062,-500.0,0.00026027,7]
[344329313,1733347842072,-876.64,0.00026027,7]
[344329314,1733347842083,-500.0,0.00026027,7]
[344329315,1733347842094,-1165.47,0.00026027,7]
[344329316,1733347842104,-500.0,0.00026027,7]
[344329317,1733347842115,-585.66,0.00026027,7]
[344329318,1733347842127,-500.0,0.00026027,7]
[344329319,1733347842139,-4717.91,0.00026027,7]
[344329320,1733347842150,-500.0,0.00026027,7]
[344329321,1733347842162,-1716.19,0.00026027,7]
[344329322,1733347842173,-500.0,0.00026027,7]
[344329323,1733347842183,-11081.75,0.00026027,7]
[344329324,1733347842193,-2522.93,0.00026027,7]
[344329325,1733347842203,-579.38,0.00026027,7]
[344329326,1733347842219,-611.96,0.00026027,7]
[344329327,1733347842229,-500.0,0.00026027,7]
[344329328,1733347842239,-500.0,0.00026027,7]
[344329329,1733347842249,-1031.46,0.00026027,7]
[344329330,1733347842260,-767.14,0.00026027,7]
[344329331,1733347842269,-500.0,0.00026027,7]
[344329332,1733347842279,-500.0,0.00026027,7]
[344329333,1733347842289,-554.73,0.00026027,7]
[344329334,1733347842299,-610.62,0.00026027,7]
[344329335,1733347842309,-500.0,0.00026027,7]
[344329336,1733347842319,-1486.12,0.00026027,7]
[344329337,1733347842330,-249.01395816,0.00026027,7]
[344329338,1733347842341,-1912.5,0.00026027,7]
[344329339,1733347842351,-608.21,0.00026027,7]
[344329340,1733347842361,-589.95,0.00026027,7]
[344329341,1733347842371,-500.0,0.00026027,7]
[344329342,1733347842383,-3054.3,0.00026027,7]
[344329343,1733347842393,-721.55,0.00026027,7]
[344329344,1733347842404,-780.24,0.00026027,7]
[344329347,1733347842414,-1370.58,0.00026027,7]
[344329349,1733347842426,-500.0,0.00026027,7]
[344329351,1733347842437,-748.48,0.00026027,7]
[344329352,1733347842447,-500.0,0.00026027,7]
[344329353,1733347842457,-500.0,0.00026027,7]
[344329354,1733347842472,-1701.8,0.00026027,7]
[344329355,1733347842483,-500.0,0.00026027,7]
[344329356,1733347842492,-500.0,0.00026027,7]
[344329357,1733347842502,-187.69,0.00026027,7]
[344329358,1733347842511,-715.28,0.00026027,7]
[344329360,1733347842521,-1267.59,0.00026027,7]
[344329363,1733347842531,-500.0,0.00026027,7]
[344329364,1733347842540,-3818.71146578,0.00026046,2]
[344329365,1733347842552,-221.549556,0.000261,7]
[344329366,1733347842561,-221.549556,0.000261,7]
[344329367,1733347842570,-2664.72959304,0.00026197,2]
[344329368,1733347842580,-1505.18782809,0.00026222,2]
[344329369,1733347842591,-2500.0,0.000263,3]
[344329370,1733347842600,-160.0,0.000263,2]
[344329371,1733347842609,-151.0,0.000263,7]
[344329372,1733347842618,-809.266037,0.000263,7]
[344329373,1733347842628,-809.266037,0.000263,7]
[344329374,1733347842638,-221.549556,0.00026301,7]
[344329376,1733347842647,-221.549556,0.00026301,7]
[344329377,1733347842657,-151.0,0.00026301,7]
[344329379,1733347842667,-744.97,0.00026301,7]
[344329381,1733347842677,-500.0,0.00026301,7]
[344329382,1733347842688,-500.0,0.00026301,7]
[344329383,1733347842698,-623.78,0.00026301,7]
[344329384,1733347842708,-500.0,0.00026301,7]
[344329385,1733347842723,-599.08,0.00026301,7]
[344329386,1733347842733,-500.0,0.00026301,7]
[344329387,1733347842742,-500.0,0.00026301,7]
[344329388,1733347842752,-500.0,0.00026301,7]
[344329389,1733347842761,-777.31,0.00026301,7]
[344329390,1733347842771,-500.0,0.00026301,7]
[344329391,1733347842780,-500.52,0.00026301,7]
[344329392,1733347842790,-500.0,0.00026301,7]
[344329393,1733347842800,-500.0,0.00026301,7]
[344329394,1733347842809,-500.0,0.00026301,7]
[344329396,1733347842819,-538.85,0.00026301,7]
[344329397,1733347842829,-500.0,0.00026301,7]
[344329399,1733347842839,-500.0,0.00026301,7]
[344329401,1733347842848,-622.0,0.00026301,7]
[344329402,1733347842859,-500.0,0.00026301,7]
[344329404,1733347842869,-609.02,0.00026301,7]
[344329405,1733347842878,-1330.07,0.00026301,7]
[344329406,1733347842888,-151.0,0.00026301,7]
[344329407,1733347842899,-151.0,0.00026301,7]
[344329408,1733347842909,-500.0,0.00026301,7]
[344329409,1733347842918,-151.0,0.00026301,7]
[344329411,1733347842928,-500.0,0.00026301,7]
[344329413,1733347842938,-704.14,0.00026301,7]
[344329415,1733347842948,-524.49,0.00026301,7]
[344329416,1733347842958,-151.0,0.00026301,7]
[344329418,1733347842969,-500.0,0.00026301,7]
[344329420,1733347842979,-432.11263641,0.00026301,7]
[344329422,1733347842988,-500.0,0.00026301,7]
[344329423,1733347842998,-541.2,0.00026301,7]
[344329425,1733347843009,-257.212098,0.00026301,7]
[344329427,1733347843018,-151.0,0.00026301,7]
[344329429,1733347843028,-257.212098,0.00026301,7]
[344329431,1733347843039,-151.0,0.00026301,7]
[344329433,1733347843050,-876.64,0.00026301,7]
[344329434,1733347843062,-481.78973823,0.00026301,7]
[344329435,1733347843072,-1165.47,0.00026301,7]
[344329436,1733347843083,-500.0,0.00026301,7]
[344329437,1733347843093,-585.66,0.00026301,7]
[344329438,1733347843103,-500.0,0.00026301,7]
[344329439,1733347843113,-4717.91,0.00026301,7]
[344329440,1733347843123,-500.0,0.00026301,7]
[344329441,1733347843135,-1716.19,0.00026301,7]
[344329442,1733347843144,-500.0,0.00026301,7]
[344329443,1733347843154,-11081.75,0.00026301,7]
[344329444,1733347843164,-2522.93,0.00026301,7]
[344329445,1733347843174,-186.83499,0.00026301,7]
[344329446,1733347843184,-156.333236,0.00026301,7]
[344329447,1733347843193,-579.38,0.00026301,7]
[344329448,1733347843203,-500.0,0.00026301,7]
[344329449,1733347843213,-500.0,0.00026301,7]
[344329450,1733347843226,-1031.46,0.00026301,7]
[344329451,1733347843236,-767.14,0.00026301,7]
[344329452,1733347843246,-500.0,0.00026301,7]
[344329453,1733347843255,-500.0,0.00026301,7]
[344329454,1733347843265,-554.73,0.00026301,7]
[344329455,1733347843275,-521.88815,0.00026301,7]
[344329456,1733347843284,-610.62,0.00026301,7]
[344329457,1733347843295,-521.88815,0.00026301,7]
[344329458,1733347843305,-500.0,0.00026301,7]
[344329459,1733347843314,-1486.12,0.00026301,7]
[344329460,1733347843324,-1912.5,0.00026301,7]
[344329461,1733347843333,-608.21,0.00026301,7]
[344329462,1733347843343,-589.95,0.00026301,7]
[344329463,1733347843353,-500.0,0.00026301,7]
[344329464,1733347843362,-3054.3,0.00026301,7]
[344329465,1733347843372,-721.55,0.00026301,7]
[344329466,1733347843382,-780.24,0.00026301,7]
[344329467,1733347843391,-1370.58,0.00026301,7]
[344329468,1733347843401,-500.0,0.00026301,7]
[344329469,1733347843411,-748.48,0.00026301,7]
[344329470,1733347843421,-500.0,0.00026301,7]
[344329471,1733347843430,-500.0,0.00026301,7]
[344329472,1733347843440,-1701.8,0.00026301,7]
[344329473,1733347843449,-151.0,0.00026301,7]
[344329474,1733347843459,-500.0,0.00026301,7]
[344329475,1733347843473,-500.0,0.00026301,7]
[344329476,1733347843488,-715.28,0.00026301,7]
[344329477,1733347843498,-1267.59,0.00026301,7]
[344329478,1733347843507,-500.0,0.00026301,7]
[344329479,1733347843517,-1161.46648276,0.00026329,2]
[344329480,1733347843527,-4096.19296465,0.00026383,2]
[344329481,1733347843537,-160.0,0.00026399,2]
[344329482,1733347843547,-22468.71972141,0.000264,2]
[344329483,1733347843557,-684647.56387081,0.000264,7]
[344329484,1733347843679,-527.89,0.00024931,7]
[344329485,1733347843689,-242.99452042,0.000264,7]
[344329487,1733347843701,-4820.782075,0.000264,7]
[344329488,1733347843714,-1934.45,0.000264,7]
[344329489,1733347843730,-551.656765,0.000264,7]
[344329490,1733347843742,-921.9144884,0.000264,7]
[344329491,1733347844569,-213.63294022,0.00019989,2]
[344329492,1733347844579,-196.6515151,0.00019989,2]
[344329493,1733347844589,-227.5823876,0.00019989,2]
[344329494,1733347844599,-500.0,0.00024657,7]
[344329495,1733347844609,-500.0,0.00024657,7]
[344329496,1733347844619,-500.0,0.00024657,7]
[344329497,1733347844628,-500.0,0.00024657,7]
[344329498,1733347844638,-500.0,0.00024931,7]
[344329499,1733347844647,-500.0,0.00024931,7]
[344329500,1733347844657,-527.89,0.00025205,7]
[344329501,1733347844667,-500.0,0.00025205,7]
[344329502,1733347844677,-151.0,0.00025205,7]
[344329503,1733347844687,-188.99,0.00025205,7]
[344329504,1733347844697,-527.89,0.00025479,7]
[344329505,1733347844708,-527.89,0.00025753,7]
[344329506,1733347844720,-151.0,0.00025753,7]
[344329507,1733347844731,-527.89,0.00026027,7]
[344329508,1733347844741,-527.89,0.00026301,7]
[344329509,1733347844751,-151.0,0.00026301,7]
[344329510,1733347844761,-30436.37291953,0.000264,7]
[344329511,1733347844773,-49939.98758572,0.000264,7]
[344329512,1733347844786,-1965.5171,0.000264,7]
[344329513,1733347844803,-2804.68032751,0.000264,7]
[344329514,1733347844977,-404.525,0.000264,7]
[344329547,1733348626906,263.057382,0.00013973,2]
[344329650,1733349032335,-177.32,0.00019975,2]
[344329651,1733349032352,-334.95080252,0.00019975,2]
[344329653,1733349032362,-300.0,0.00019983,2]
[344329655,1733349032372,-300.0,0.00019983,2]
[344329657,1733349032387,-228.42960315,0.00019984,2]
[344329659,1733349032398,-500.0,0.00019984,2]
[344329661,1733349032407,-500.0,0.00019984,2]
[344329663,1733349032416,-500.0,0.00019984,2]
[344329665,1733349032427,-500.0,0.00019984,2]
[344329667,1733349032436,-500.0,0.00019984,2]
[344329669,1733349032446,-500.0,0.00019984,2]
[344329671,1733349032456,-520.0,0.00019984,2]
[344329673,1733349032467,-236.39344417,0.00019984,2]
[344329675,1733349032476,-500.0,0.00019985,2]
[344329677,1733349032487,-500.0,0.00019985,2]
[344329679,1733349032497,-500.0,0.00019985,2]
[344329681,1733349032507,-500.0,0.00019985,2]
[344329683,1733349032516,-500.0,0.00019985,2]
[344329685,1733349032526,-500.0,0.00019985,2]
[344329687,1733349032535,-500.0,0.00019985,2]
[344329689,1733349032545,-500.0,0.00019985,2]
[344329691,1733349032555,-500.0,0.00019985,2]
[344329693,1733349032564,-500.0,0.00019985,2]
[344329695,1733349032577,-500.0,0.00019985,2]
[344329697,1733349032587,-500.0,0.00019985,2]
[344329699,1733349032597,-542.92521741,0.00019985,2]
[344329701,1733349032606,-500.0,0.00019985,2]
[344329703,1733349032615,-500.0,0.00019985,2]
[344329705,1733349032625,-500.0,0.00019985,2]
[344329707,1733349032635,-500.0,0.00019985,2]
[344329709,1733349032644,-500.0,0.00019985,2]
[344329711,1733349032654,-500.0,0.00019985,2]
[344329713,1733349032663,-500.0,0.00019985,2]
[344329715,1733349032673,-500.0,0.00019985,2]
[344329717,1733349032683,-500.0,0.00019985,2]
[344329718,1733349032692,-500.0,0.00019985,2]
[344329719,1733349032702,-500.0,0.00019985,2]
[344329720,1733349032711,-500.0,0.00019985,2]
[344329722,1733349032720,-500.0,0.00019985,2]
[344329724,1733349032730,-500.0,0.00019985,2]
[344329726,1733349032739,-500.0,0.00019985,2]
[344329728,1733349032748,-500.0,0.00019985,2]
[344329729,1733349032757,-500.0,0.00019985,2]
[344329731,1733349032767,-500.0,0.00019985,2]
[344329732,1733349032776,-500.0,0.00019985,2]
[344329734,1733349032786,-500.0,0.00019985,2]
[344329736,1733349032796,-500.0,0.00019985,2]
[344329738,1733349032806,-500.0,0.00019985,2]
[344329740,1733349032815,-500.0,0.00019985,2]
[344329742,1733349032826,-500.0,0.00019985,2]
[344329744,1733349032836,-500.0,0.00019985,2]
[344329745,1733349032846,-500.0,0.00019985,2]
[344329747,1733349032856,-500.0,0.00019985,2]
[344329748,1733349032866,-500.0,0.00019985,2]
[344329750,1733349032875,-500.0,0.00019985,2]
[344329751,1733349032885,-500.0,0.00019985,2]
[344329752,1733349032895,-500.0,0.00019985,2]